Cogmind - Beta 16 @@@ ROGUE MODE // 2025.11.02 @ 15:17:30 Player: Not_Jesus8 Result: Destroyed by A1-94K(R) with Subdweller Beam Cannon Performance ------------- Evolutions (0) 0 Regions Visited (3) 600 Robots Destroyed (4) 20 Value Destroyed (149) 149 Prototype IDs (0) 0 Alien Tech Used (0) 0 Bonus (0) 0 TOTAL SCORE: 769 Bonus ------- None Cogmind --------- Core Integrity 0/250 Matter 300/300 Energy 100/100 System Corruption 10% Temperature Cool (9) Movement Core (50) Location -10/Subcaves Parts ------- > --- POWER (1) -------- (None) > --- PROPULSION (2) --- (None) > --- UTILITY (2) ------ (None) > --- WEAPON (2) ------- (None) > --- INVENTORY (5) ---- Large Storage Unit Signal Interpreter Peak State ------------ > --- POWER ------------ Ion Engine > --- PROPULSION ------- Wheel Compact Wheel > --- UTILITY ---------- Small Storage Unit > --- WEAPON ----------- EM Pulse Gun EM Pulse Gun > --- INVENTORY -------- (None) [Rating: 6] Favorites ----------- Power Ion Engine Engine Ion Engine Propulsion Wheel Wheel Wheel Utility Large Storage Unit Storage Large Storage Unit Weapon Hammer Energy Gun EM Pulse Gun Impact Weapon Hammer Build | -11 -10 -10 -10 ------- Run | Yrd Mat Min Sub Slots Evolved . | . . . . Power . | . . . . Propulsion . | . . . . Utility . | . . . . Weapon . | . . . . Parts Attached 8 | 6 2 . . Power 1 | 1 . . . Engine 1 | 1 . . . Core . | . . . . Reactor . | . . . . Propulsion 2 | 2 . . . Treads . | . . . . Leg . | . . . . Wheel 2 | 2 . . . Hover . | . . . . Flight . | . . . . Utility 2 | 1 1 . . Device . | . . . . Storage 2 | 1 1 . . Processor . | . . . . Hackware . | . . . . Protection . | . . . . Artifact . | . . . . Weapon 3 | 2 1 . . Energy Gun 2 | 2 . . . Energy Cannon . | . . . . Ballistic Gun . | . . . . Ballistic Cannon . | . . . . Launcher . | . . . . Special Weapon . | . . . . Impact Weapon 1 | . 1 . . Slashing Weapon . | . . . . Piercing Weapon . | . . . . Special Melee Weapon . | . . . . Unidentified Prototypes . | . . . . Parts Lost 4 | . . . 4 Power 1 | . . . 1 Propulsion 2 | . . . 2 Utility . | . . . . Weapon 1 | . . . 1 Highest Loss Streak 3 | . . . 3 To Critical Strikes . | . . . . Average Backups . | . . 1 1 Power . | . . . . Propulsion . | . . . . Utility . | . . 1 1 Weapon . | . . . . Tool/Special . | . . . . Unused Backups 1 | . . . 1 Power . | . . . . Propulsion . | . . . . Utility 1 | . . . 1 Weapon . | . . . . Tool/Special . | . . . . Average Slot Usage (%) 65 | . 72 71 51 Engine 12 | . 14 14 9 Wheel 24 | . 28 28 18 Storage 12 | . 14 14 10 Energy Gun 1 | . 3 . . Impact Weapon 12 | . 11 14 13 Peak Build Rating 6 | 6 6 5 5 Average Rating 4 | 4 5 5 3 On Entrance 4 | . 6 5 5 Avg Prop Armor Cover (%) . | . . . . Naked Turns 2 | . . . 2 Heaviest Build 27 | 14 27 27 27 Greatest Support 26 | 26 26 26 26 Greatest Overweight (x) 7 | . 1 1 7 Average Overweight (x) . | . . 1 . Largest Inventory Capacity 15 | 8 15 15 15 Average Capacity 11 | 7 10 15 12 Most Carried 2 | . 1 1 2 Average Carried . | . . 1 1 Final Capacity 15 | 8 15 15 5 Final Carried 2 | . 1 1 2 Class Distribution -------------------- 100% | Mutant Dominant Class ---------------- Mutant | -10/Materials Mutant | -10/Mines Mutant | -10/Subcaves Resources | -11 -10 -10 -10 ----------- Run | Yrd Mat Min Sub Matter Collected 280 | 136 128 16 . Remotely . | . . . . Salvage Created 165 | . 165 . . Parts . | . . . . Haulers Intercepted . | . . . . Recyclers Shooed . | . . . . Parts Field Recycled . | . . . . Retrieved Matter . | . . . . Parts Self-Destructed 4 | . . . 4 Prevented . | . . . . Parts Restored . | . . . . Kills | -11 -10 -10 -10 ------- Run | Yrd Mat Min Sub Combat Hostiles Destroyed 4 | . 4 . . Melee 1 | . 1 . . Classes Destroyed 1 | . 1 . . Grunt 4 | . 4 . . Best Kill Streak 1 | . 1 . . Combat Bots Only 1 | . 1 . . Max Kills in Single Turn 1 | . 1 . . Gunslinging . | . . . . Exploded . | . . . . Melee 1 | . 1 . . Uniques/NPCs Destroyed . | . . . . Combat | -11 -10 -10 -10 -------- Run | Yrd Mat Min Sub Hostile Shots Fired 39 | . 23 . 16 Missed 10 | . 8 . 2 Hits 29 | . 15 . 14 Projectile 29 | . 15 . 14 Damage Taken 605 | . 184 . 421 Core 265 | . 50 . 215 Absorbed by Shields . | . . . . Core Remaining (%) 100 | 100 . . . Volleys Fired . | . . . . Largest . | . . . . Hottest . | . . . . Shots Fired . | . . . . Gun . | . . . . Cannon . | . . . . Launcher . | . . . . Special . | . . . . Kinetic . | . . . . Thermal . | . . . . Explosive . | . . . . Electromagnetic . | . . . . Robot Hit Streak . | . . . . Robot Miss Streak . | . . . . Penetration Max . | . . . . Secondary Targets . | . . . . Shots Hit Robots 18 | . 16 . 2 Core Hits 1 | . 1 . . Critical Kills . | . . . . Critical Parts Destroyed 1 | . 1 . . Critical Strikes 1 | . 1 . . Smash 1 | . 1 . . Melee Attacks 41 | . 20 . 21 Impact 41 | . 20 . 21 Slashing . | . . . . Piercing . | . . . . Sneak Attacks . | . . . . Combat Hostiles . | . . . . Follow-up Attacks . | . . . . Damage Inflicted 405 | . 393 . 12 Guns . | . . . . Cannons . | . . . . Explosions . | . . . . Melee 393 | . 393 . . Ramming 12 | . . . 12 Kinetic . | . . . . Thermal . | . . . . Explosive . | . . . . Electromagnetic . | . . . . Impact 393 | . 393 . . Slashing . | . . . . Piercing . | . . . . Highest Corruption 10 | . 1 1 10 Average Corruption 2 | . 1 1 3 Corruption Purged . | . . . . Corruption Blocked . | . . . . Effects 3 | . . 1 2 Message Errors 1 | . . . 1 Heat Flow Errors 1 | . . . 1 Energy Discharges 1 | . . 1 . Overload Shots . | . . . . Overflow Damage 35 | . 35 . . Projectiles . | . . . . Explosions . | . . . . Melee 35 | . 35 . . Knockbacks 2 | . 2 . . Impact 2 | . 2 . . Kinetic . | . . . . Secondary . | . . . . Self-Inflicted Damage 12 | . . . 12 Shots . | . . . . Rammed . | . . . . Targets Rammed . | . . . . Kicked . | . . . . Crushed . | . . . . Highest Temperature 58 | . . . 58 Average Temperature 35 | . . . 35 Received Heat Transfer 147 | . 102 . 45 Siege Activations . | . . . . Martial Activations . | . . . . Shielding Activations . | . . . . Robots Disrupted . | . . . . Combat Hostiles . | . . . . Robots Corrupted 3 | . 3 . . Combat Hostiles 3 | . 3 . . Parts Fried 6 | . 6 . . Impact Corruptions 4 | . 4 . . Robots Melted . | . . . . Combat Hostiles . | . . . . Parts Melted . | . . . . Heat Transferred . | . . . . Parts Sabotaged . | . . . . Parts Stolen . | . . . . Parts Stripped . | . . . . Power Chain Reactions . | . . . . Alert | -11 -10 -10 -10 ------- Run | Yrd Mat Min Sub Maximum Alert Level . | . . . . Low Security (%) 100 | 100 100 100 . Level 1 . | . . . . Level 2 . | . . . . Level 3 . | . . . . Level 4 . | . . . . Level 5 . | . . . . High Security . | . . . . Max Security . | . . . . Peak Influence 52 | . 52 16 . Initial 16 | . . 16 . Average 19 | . 27 4 . Influence Increases 152 | . 152 . . Destroy 0b10 Robot/C 80 | . 80 . . Destroy Leader 20 | . 20 . . Successful Hack 21 | . 21 . . Destroy Structure 1 | . 1 . . Lose Combat Pursuer 30 | . 30 . . Influence Decreases 152 | . 110 42 . Entered New Map 26 | . . 26 . Time Decay 126 | . 110 16 . Squads Dispatched 2 | . 2 . . Investigation 2 | . 2 . . Extermination . | . . . . Reinforcement . | . . . . Assault . | . . . . Garrison . | . . . . Intercept . | . . . . Searches Triggered . | . . . . Construction Impeded . | . . . . Haulers Reinforced . | . . . . Active Scanning Responses . | . . . . Cargo Convoy Interrupts . | . . . . Stealth | -11 -10 -10 -10 --------- Run | Yrd Mat Min Sub Distress Signals . | . . . . Communications Jammed . | . . . . Distress Signals . | . . . . Times Spotted 11 | . 7 . 4 Peak Tracking Total 4 | . 3 . 4 Tactical Retreats 2 | . 2 . . Traps | -11 -10 -10 -10 ------- Run | Yrd Mat Min Sub Traps Triggered . | . . . . Indirectly . | . . . . Trap Hack Attempts . | . . . . Triggered . | . . . . Disarmed . | . . . . Reprogrammed . | . . . . Reused . | . . . . Traps Extracted . | . . . . Installed . | . . . . Triggered . | . . . . Machines | -11 -10 -10 -10 ---------- Run | Yrd Mat Min Sub Machines Disabled . | . . . . Max in Single Turn . | . . . . Machines Repaired . | . . . . Machines Dismantled . | . . . . Machines Sabotaged . | . . . . Overloaded Fab Kills . | . . . . Hacking | -11 -10 -10 -10 --------- Run | Yrd Mat Min Sub Machines Accessed 3 | . 3 . . Terminals 3 | . 3 . . Fabricators . | . . . . Repair Stations . | . . . . Recycling Units . | . . . . Scanalyzers . | . . . . Garrison Access . | . . . . Total Hacks 12 | . 12 . . Successful 5 | . 5 . . Failed 7 | . 7 . . Catastrophic 1 | . 1 . . Database Lockouts . | . . . . Manual 12 | . 12 . . Terminals 12 | . 12 . . Fabricators . | . . . . Repair Stations . | . . . . Recycling Units . | . . . . Scanalyzers . | . . . . Garrison Access . | . . . . Terminal Hacks 2 | . 2 . . Terminal Index 1 | . 1 . . Registered Components 1 | . 1 . . Fabricator Hacks . | . . . . Repair Station Hacks . | . . . . Recycling Unit Hacks . | . . . . Scanalyzer . | . . . . Garrison Access Hacks . | . . . . Unauthorized Hacks 3 | . 3 . . Terminals 3 | . 3 . . Botnet 3 | . 3 . . Fabricators . | . . . . Repair Stations . | . . . . Recycling Units . | . . . . Scanalyzers . | . . . . Garrison Access . | . . . . Data Cores Recovered . | . . . . Used . | . . . . Hacking Detections 3 | . 3 . . Full Trace Events 3 | . 3 . . Feedback Events 1 | . 1 . . Corruption 1 | . 1 . . Feedback Blocked . | . . . . Robot Schematics Acquired . | . . . . Robots Built . | . . . . Authchips . | . . . . Time . | . . . . Total Robot Build Rating . | . . . . Part Schematics Acquired . | . . . . Parts Built . | . . . . Authchips . | . . . . Time . | . . . . Total Part Build Rating . | . . . . Part Studies Acquired . | . . . . Parts Repaired . | . . . . Time . | . . . . Parts Recycled . | . . . . Recycled Matter . | . . . . Retrieved Matter . | . . . . Retrieved Components . | . . . . Parts Scanalyzed . | . . . . Part Schematics Acquired . | . . . . Parts Damaged . | . . . . Bothacking | -11 -10 -10 -10 ------------ Run | Yrd Mat Min Sub Used RIF Installer . | . . . . Robots Hacked . | . . . . Non-combat . | . . . . Combat . | . . . . Robot Hacks Applied . | . . . . Relay Couplers Released . | . . . . Fabnet Peak Effective % . | . . . . Robots Rewired . | . . . . Allies Hacked . | . . . . Hacks Repelled . | . . . . Allies | -11 -10 -10 -10 -------- Run | Yrd Mat Min Sub Total Allies . | . . . . Largest Group . | . . . . Highest-Rated Group . | . . . . Highest-Rated Ally . | . . . . Total Orders . | . . . . Ally Attacks . | . . . . Total Damage . | . . . . Kills . | . . . . Allies Corrupted . | . . . . Allies Melted . | . . . . Intel | -11 -10 -10 -10 ------- Run | Yrd Mat Min Sub Active Infowar (turns) . | . . . . Robot Analysis Total . | . . . . Derelict Logs Recovered . | . . . . Drone Launches . | . . . . Drone Recoveries . | . . . . Exploration | -11 -10 -10 -10 ------------- Run | Yrd Mat Min Sub Turns Passed 610 | 51 281 94 184 Spaces Moved 452 | 48 190 90 124 Core 31 | 1 . . 30 Treads . | . . . . Legs . | . . . . Wheels 421 | 47 190 90 94 Hover . | . . . . Flight . | . . . . Fastest Speed 50 | 50 90 105 50 Average Speed 97 | 87 93 105 100 Slowest Speed 400 | 90 105 105 400 Overloaded Moves . | . . . . Propulsion Burnouts . | . . . . Robots Hopped . | . . . . Potential Cave-ins . | . . . . Cave-ins Triggered 1 | . . . 1 Exploration Rate (%) 16 | 3 37 17 9 Regions Visited 3 Branch Regions 2 Pre-discovered Areas 1 | . . . 1 Known Exits Taken . | . . . . Unknown Exits Taken 3 | 1 1 1 . Scrap Searched 1 | . . 1 . Spaces Dug 5 | . 1 . 4 Terrain Destroyed 5 | . 1 . 4 Melee 5 | . 1 . 4 Projectile . | . . . . AOE . | . . . . Terrain Rammed 2 | . . . 2 Walls Destroyed . | . . . . Machines Disabled . | . . . . Actions | -11 -10 -10 -10 --------- Run | Yrd Mat Min Sub Total 548 | 53 258 89 148 Wait 42 | . 42 . . Move 449 | 47 189 89 124 Hop . | . . . . Pick Up 2 | . 2 . . Fast Attach 7 | 6 1 . . Attach 1 | . 1 . . Detach 1 | . . . 1 Swap . | . . . . Drop 3 | . 3 . . Fire . | . . . . Melee 41 | . 20 . 21 Ram 2 | . . . 2 Kick . | . . . . Crush . | . . . . Escape Stasis . | . . . . Rewire . | . . . . Trap . | . . . . Miscellaneous . | . . . . Route ------- -11/Scrapyard -10/Materials -10/Mines -10/Subcaves History --------- Turn | Location | Event 36 | -11/Scrapyard | Discovered new exit (range 16) 52 | -11/Scrapyard | Entered Materials 308 | -10/Materials | Build established: Mutant 319 | -10/Materials | Discovered new exit (range 12) 333 | -10/Materials | Entered Mines 411 | -10/Mines | Discovered new exit (range 10) 427 | -10/Mines | Entered Subcaves 428 | -10/Subcaves | Approached by a straggling Scientist 448 | -10/Subcaves | Learned location of Zion (-7) 448 | -10/Subcaves | Met a Zionite searching for "candidates" 523 | -10/Subcaves | A swath of the cavern ceiling suddenly collapsed 549 | -10/Subcaves | Crushed by falling debris 580 | -10/Subcaves | Lost 3 parts (1p2n) 589 | -10/Subcaves | Ambushed by Subdwellers from Twisted Machinery 606 | -10/Subcaves | Core integrity fell below 50% 610 | -10/Subcaves | Core integrity fell below 20% 611 | -10/Subcaves | System corruption reached 10% 611 | -10/Subcaves | Destroyed by A1-94K(R) with Subdweller Beam Cannon Last Messages --------------- effect. A swath of the cavern ceiling suddenly collapses. 00549_ The unstable cave ceiling collapses. 00549_ Crushed by falling debris. 00549_ Ion Engine destroyed. 00549_ System corrupted by crushing effect (+2). 00549_ Com. Wheel destroyed. 00549_ System corrupted by crushing effect (+4). 00549_ Wheel destroyed. 00549_ System corrupted by crushing effect (+1). 00574_ V=OQ3=F4J=&5 YVWCDPWWGVP#5Z3KG>H 00589_ D0-2UQ(R) emerges from the Twisted Machinery. 00589_ System corrupted: Heat flow error (+103). 00609_ Hammer destroyed. 00610_ Slammed into Twisted Machinery. 00610_ Destabilizing: System corrupted (+2). 00611_ Slammed into Twisted Machinery. 00611_ Destabilizing: Core damaged (-5). Map ----- +----------------------------------------------------+ | #### #???????? ???????????????????? | | ##?##???? ????????????????????? | | # #????# ##???????????????????? | | ?## #???????????????????? | | #### ### ##### #????????????????????? | | ### ##############????????????????????? | | # ## # # #" ########?????????????? | | ###"##""#"#??????#??????? | | ### ########### ###"#"" ""#?????" ##?????? | | #?## ##?????????######## ####"#"#### #?????? | | ???## ##???????????????##""""""""#" #?????? | | ????####????????????????##"###### " #??????? | | ????????????????????????##"#???# ########??????? | | ?????????????????????????###???## #????????????? | | ???????????????????????????????# ##???????????? | | ?????????????????????????????### " #???????????? | | ????????????????????????????## """"##??????????? | | ???????????????????????????## """####???????? | | ???????????????????????????# " #???????? | | ??????????????????????????### ;# % #???????? | | ?????????????????????????## # " ""?????? | | ????????????????????????## ""## % "%[" ????? | | ??????????????????????### """#"""""# &% ????? | | ?????????????????????## "RRR## # ##""###?#! ????? | | ?????????????????????# ""% ########?"##??????????? | | ?????????????????????# "@"#?????????????????????? | | ???????????????# %R""""#???????????????????? | | ???????????????# """"" #??????????????????? | | ???????????????#### # #?????????????????? | | ??????????????????## ?????????????????? | | ???????????????????# u ## ?????????????????? | | ???????????????????# ## ##?? ????????????????? | | ??????????????????? #?#"""#????????????????????? | | ?????????????????? ??#"""#????????????????????? | | ????????????????? #? ????????????????????????????? | | ?????????????????????????????????????????????????? | | ?????????????????????????????????????????????????? | | ?????????????????????????????????????????????????? | | ?????????????????????????????????????????????????? | | ?????????????????????????????????????????????????? | | ?????????????????????????????????????????????????? | | ?????????????????????????????????????????????????? | | ?????????????????????????????????????????????????? | | ?????????????????????????????????????????????????? | | ?????????????????????????????????????????????????? | | ?????????????????????????????????????????????????? | | ?????????????????????????????????????????????????? | | ?????????????????????????????????????????????????? | | ?????????????????????????????????????????????????? | | ?????????????????????????????????????????????????? | +----------------------------------------------------+ Best States ------------- Heat Dissipation 25 Energy Generation 10 Energy Capacity 250 Matter Stores 300 Matter Capacity 300 Sight Range 16 Terrain Scan Density 10 Evasion (%) 50 Item Schematics ----------------- None Robot Schematics ------------------ None Fabricated ------------ Nothing Repaired ---------- Nothing Studied --------- None Alien Tech Used ----------------- None Achievements -------------- None Challenges ------------ None Game ------ Seed DeflectorTractorModule Manual? 0 Play Time 00:05:10 Cumulative 27.5 hours Start 2025.11.02 @ 15:13:28 End 2025.11.02 @ 15:17:30 Sessions 1 Manual Loads 0 Difficulty Rogue Special Mode None Game No. 51 Rogue 51 Adventurer 0 Explorer 0 Win Type - Total 2 Types 2/0/0/0/0/0/0/0/0/0 Lore% 37 Gallery% 30 Achievement% 29 Wizard Run 0 Options --------- Layout 1 ASCII 0 Keyboard 1 Movement Arrows Keybinds 0 Fullscreen 1 Font 16/SmallcapsGlow Map View 50x54 Zoom Use 8% Tactical HUD 1 Map Filters NONE Filters NONE Steam 1 RUN: 1186c8fa-c077-47da-b16c-e9e17532cefd